[Event "19th Rochefort Chess Festival - Masters"]
[Site "Rochefort, France"]
[Date "2020.02.25"]
[Round "5.3"]
[White "Vorobiov, Evgeny E."]
[Black "Prie, Eric"]
[Result "1/2-1/2"]
[TimeControl "1h30/40 - 30' + [30'']"]
[WhiteElo "2520"]
[BlackElo "2423"]

1. e4 {[%clk 01:30:57]} {[%emt 00:00:02]} d5 {[%clk 01:27:34]} {[%emt
00:03:27]} 2. exd5 {[%clk 01:31:22]} {[%emt 00:00:06]} Qxd5 {[%clk 01:27:55]}
{[%emt 00:00:08]} 3. Nc3 {[%clk 01:31:46]} {[%emt 00:00:06]} Qa5 {[%clk
01:28:12]} {[%emt 00:00:14]} 4. d4 {[%clk 01:32:04]} {[%emt 00:00:11]} Nf6
{[%clk 01:28:31]} {[%emt 00:00:11]} 5. Nf3 {[%clk 01:31:57]} {[%emt 00:00:36]}
Bf5 {[%clk 01:28:38]} {[%emt 00:00:23]} 6. Bd2 {[%clk 01:31:15]} {[%emt
00:01:12]} e6 {[%clk 01:27:16]} {[%emt 00:01:52]} 7. Ne5 {[%clk 01:31:06]}
{[%emt 00:00:40]} Qb6 {[%clk 01:27:37]} {[%emt 00:00:10]} 8. Qf3 {[%clk
01:30:30]} {[%emt 00:01:05]} c6 {[%clk 01:06:49]} {[%emt 00:21:18]} 9. O-O-O
{[%clk 01:29:20]} {[%emt 00:01:39]} Nbd7 {[%clk 01:07:05]} {[%emt 00:00:14]} 10.
Nc4 {[%clk 01:28:56]} {[%emt 00:00:55]} Qd8 {[%clk 01:07:26]} {[%emt 00:00:09]}
11. h3 {[%clk 01:29:21]} {[%emt 00:00:05]} Nb6 {[%clk 01:07:01]} {[%emt
00:00:55]} 12. g4 {[%clk 01:02:38]} {[%emt 00:27:13]} Bg6 {[%clk 01:06:25]}
{[%emt 00:01:07]} 13. Ne5 {[%clk 01:02:27]} {[%emt 00:00:40]} Bb4 {[%clk
00:57:36]} {[%emt 00:09:19]} 14. Nxg6 {[%clk 00:58:12]} {[%emt 00:04:46]}
1/2-1/2

[Event "19th Rochefort Chess Festival - Masters"]
[Site "Rochefort, France"]
[Date "2020.02.25"]
[Round "5.4"]
[White "Burmakin, Vladimir"]
[Black "Le Goff, Ronan"]
[Result "1-0"]
[TimeControl "1h30/40 - 30' + [30'']"]
[WhiteElo "2514"]
[BlackElo "2281"]

1. Nf3 {[%clk 01:30:56]} {[%emt 00:00:01]} d5 {[%clk 01:26:07]} {[%emt
00:04:54]} 2. g3 {[%clk 01:30:31]} {[%emt 00:00:55]} Nd7 {[%clk 01:26:19]}
{[%emt 00:00:19]} 3. d4 {[%clk 01:30:45]} {[%emt 00:00:16]} Nb6 {[%clk
01:26:42]} {[%emt 00:00:07]} 4. Nbd2 {[%clk 01:27:02]} {[%emt 00:04:13]} Bf5
{[%clk 01:22:47]} {[%emt 00:04:25]} 5. Nh4 {[%clk 01:27:23]} {[%emt 00:00:09]}
e6 {[%clk 01:14:54]} {[%emt 00:08:23]} 6. Nxf5 {[%clk 01:27:42]} {[%emt
00:00:10]} exf5 {[%clk 01:15:17]} {[%emt 00:00:07]} 7. Bg2 {[%clk 01:27:54]}
{[%emt 00:00:18]} c6 {[%clk 01:15:03]} {[%emt 00:00:44]} 8. O-O {[%clk
01:26:57]} {[%emt 00:01:27]} Nf6 {[%clk 01:11:39]} {[%emt 00:03:54]} 9. c3
{[%clk 01:26:27]} {[%emt 00:01:00]} g6 {[%clk 01:02:46]} {[%emt 00:09:23]} 10.
f3 {[%clk 01:15:55]} {[%emt 00:11:02]} Bg7 {[%clk 00:53:53]} {[%emt 00:09:22]}
11. e4 {[%clk 01:16:18]} {[%emt 00:00:07]} fxe4 {[%clk 00:52:00]} {[%emt
00:02:23]} 12. fxe4 {[%clk 01:16:46]} {[%emt 00:00:02]} dxe4 {[%clk 00:51:40]}
{[%emt 00:00:50]} 13. Nxe4 {[%clk 01:16:38]} {[%emt 00:00:39]} Nxe4 {[%clk
00:51:54]} {[%emt 00:00:16]} 14. Bxe4 {[%clk 01:16:59]} {[%emt 00:00:09]} O-O
{[%clk 00:52:00]} {[%emt 00:00:23]} 15. Bg2 {[%clk 01:17:15]} {[%emt 00:00:15]}
Qd7 {[%clk 00:48:04]} {[%emt 00:04:26]} 16. Bf4 {[%clk 01:09:30]} {[%emt
00:08:15]} Rfe8 {[%clk 00:39:01]} {[%emt 00:09:33]} 17. Qf3 {[%clk 01:09:50]}
{[%emt 00:00:10]} Nd5 {[%clk 00:36:55]} {[%emt 00:02:36]} 18. Bd2 {[%clk
01:10:15]} {[%emt 00:00:04]} f5 {[%clk 00:34:33]} {[%emt 00:02:51]} 19. Rae1
{[%clk 01:10:11]} {[%emt 00:00:34]} Nf6 {[%clk 00:34:15]} {[%emt 00:00:48]} 20.
Qd3 {[%clk 01:10:31]} {[%emt 00:00:10]} Qf7 {[%clk 00:32:12]} {[%emt 00:02:33]}
21. b3 {[%clk 01:10:44]} {[%emt 00:00:17]} Rxe1 {[%clk 00:28:23]} {[%emt
00:04:20]} 22. Rxe1 {[%clk 01:11:08]} {[%emt 00:00:07]} Re8 {[%clk 00:28:32]}
{[%emt 00:00:20]} 23. Rxe8+ {[%clk 01:11:12]} {[%emt 00:00:26]} Qxe8 {[%clk
00:28:49]} {[%emt 00:00:14]} 24. Qc4+ {[%clk 01:10:55]} {[%emt 00:00:46]} Kh8
{[%clk 00:28:25]} {[%emt 00:00:54]} 25. Bf3 {[%clk 01:09:33]} {[%emt 00:01:52]}
h5 {[%clk 00:23:57]} {[%emt 00:04:57]} 26. Qd3 {[%clk 01:01:26]} {[%emt
00:08:38]} Kh7 {[%clk 00:22:32]} {[%emt 00:01:55]} 27. Qe3 {[%clk 01:01:43]}
{[%emt 00:00:13]} Qd7 {[%clk 00:20:44]} {[%emt 00:02:18]} 28. Kg2 {[%clk
00:59:21]} {[%emt 00:02:52]} a6 {[%clk 00:17:21]} {[%emt 00:03:53]} 29. h3
{[%clk 00:59:11]} {[%emt 00:00:39]} Nd5 {[%clk 00:16:30]} {[%emt 00:01:21]} 30.
Qe2 {[%clk 00:59:04]} {[%emt 00:00:38]} Qd6 {[%clk 00:15:35]} {[%emt 00:01:25]}
31. c4 {[%clk 00:52:45]} {[%emt 00:06:48]} Nf6 {[%clk 00:12:26]} {[%emt
00:03:39]} 32. Be3 {[%clk 00:52:26]} {[%emt 00:00:50]} Ne4 {[%clk 00:10:52]}
{[%emt 00:02:04]} 33. Bxe4 {[%clk 00:50:50]} {[%emt 00:02:05]} fxe4 {[%clk
00:11:15]} {[%emt 00:00:08]} 34. Qf2 {[%clk 00:51:06]} {[%emt 00:00:14]} Qd7
{[%clk 00:10:04]} {[%emt 00:01:41]} 35. g4 {[%clk 00:45:19]} {[%emt 00:06:17]}
Kg8 {[%clk 00:03:31]} {[%emt 00:07:02]} 36. gxh5 {[%clk 00:41:45]} {[%emt
00:04:05]} gxh5 {[%clk 00:03:51]} {[%emt 00:00:10]} 37. Kg3 {[%clk 00:42:02]}
{[%emt 00:00:13]} Qe6 {[%clk 00:01:54]} {[%emt 00:02:28]} 38. Qf4 {[%clk
00:36:35]} {[%emt 00:05:56]} b5 {[%clk 00:01:42]} {[%emt 00:00:42]} 39. cxb5
{[%clk 00:33:34]} {[%emt 00:03:31]} cxb5 {[%clk 00:01:39]} {[%emt 00:00:34]} 40.
Qg5 {[%clk 00:33:28]} {[%emt 00:00:35]} Qf7 {[%clk 00:00:44]} {[%emt 00:01:25]}
41. Bf4 {[%clk 00:33:44]} {[%emt 00:00:13]} Kh7 {[%clk 00:29:54]} {[%emt
00:01:21]} 42. d5 {[%clk 01:04:07]} {[%emt 00:00:07]} Qg6 {[%clk 00:20:15]}
{[%emt 00:10:09]} 43. d6 {[%clk 01:04:16]} {[%emt 00:00:20]} Bf6 {[%clk
00:13:19]} {[%emt 00:07:26]} 44. Qxg6+ {[%clk 01:04:35]} {[%emt 00:00:11]} Kxg6
{[%clk 00:13:43]} {[%emt 00:00:06]} 45. d7 {[%clk 01:05:01]} {[%emt 00:00:04]}
h4+ {[%clk 00:10:05]} {[%emt 00:04:08]} 46. Kg4 {[%clk 01:05:29]} {[%emt
00:00:01]} Bd8 {[%clk 00:10:20]} {[%emt 00:00:15]} 47. Be3 {[%clk 01:05:32]}
{[%emt 00:00:27]} a5 {[%clk 00:09:23]} {[%emt 00:01:27]} 48. Bf2 {[%clk
01:05:45]} {[%emt 00:00:16]} Kf7 {[%clk 00:07:27]} {[%emt 00:02:27]} 49. Bxh4
{[%clk 01:06:07]} {[%emt 00:00:08]} Bxh4 {[%clk 00:07:44]} {[%emt 00:00:13]} 50.
Kxh4 {[%clk 01:06:28]} {[%emt 00:00:09]} Ke7 {[%clk 00:08:10]} {[%emt
00:00:03]} 51. Kg4 {[%clk 01:06:50]} {[%emt 00:00:08]} 1-0




[ePGN "0.1;DGT LiveChess/2.2.5"]

[Event "19th Rochefort Chess Festival - Masters"]
[Site "Rochefort, France"]
[Date "2020.02.25"]
[Round "6.2"]
[White "Gareyev, Timur"]
[Black "Bogdanov, Egor"]
[Result "1-0"]
[TimeControl "1h30/40 - 30' + [30'']"]
[WhiteElo "2607"]
[BlackElo "2433"]

1. d4 {[%clk 01:30:58]} {[%emt 00:00:01]} Nf6 {[%clk 01:30:53]} {[%emt
00:00:07]} 2. c4 {[%clk 01:31:27]} g6 {[%clk 01:31:19]} {[%emt 00:00:06]} 3.
Nc3 {[%clk 01:31:51]} {[%emt 00:00:05]} Bg7 {[%clk 01:31:47]} {[%emt 00:00:02]}
4. e4 {[%clk 01:32:15]} {[%emt 00:00:06]} O-O {[%clk 01:32:13]} {[%emt
00:00:04]} 5. Bg5 {[%clk 01:31:30]} {[%emt 00:01:15]} d6 {[%clk 01:32:27]}
{[%emt 00:00:16]} 6. Qd2 {[%clk 01:31:26]} {[%emt 00:00:33]} c5 {[%clk
01:30:17]} {[%emt 00:02:41]} 7. d5 {[%clk 01:31:27]} {[%emt 00:00:29]} e6
{[%clk 01:26:36]} {[%emt 00:04:11]} 8. Bd3 {[%clk 01:31:54]} {[%emt 00:00:02]}
exd5 {[%clk 01:26:36]} {[%emt 00:00:31]} 9. cxd5 {[%clk 01:32:20]} {[%emt
00:00:04]} a6 {[%clk 01:24:52]} {[%emt 00:02:14]} 10. a4 {[%clk 01:30:48]}
{[%emt 00:02:01]} Qc7 {[%clk 01:24:56]} {[%emt 00:00:26]} 11. Nge2 {[%clk
01:30:38]} {[%emt 00:00:40]} Nbd7 {[%clk 01:23:19]} {[%emt 00:02:07]} 12. b3
{[%clk 01:27:04]} {[%emt 00:04:03]} c4 {[%clk 01:17:36]} {[%emt 00:06:14]} 13.
bxc4 {[%clk 01:27:20]} {[%emt 00:00:15]} Ne5 {[%clk 01:16:32]} {[%emt
00:01:34]} 14. O-O {[%clk 01:27:45]} {[%emt 00:00:05]} Nfd7 {[%clk 01:14:04]}
{[%emt 00:02:58]} 15. f4 {[%clk 01:24:28]} {[%emt 00:03:46]} Nxc4 {[%clk
01:10:28]} {[%emt 00:04:07]} 16. Bxc4 {[%clk 01:24:20]} {[%emt 00:00:39]} Qxc4
{[%clk 01:10:55]} {[%emt 00:00:03]} 17. f5 {[%clk 01:23:13]} {[%emt 00:01:36]}
Be5 {[%clk 00:57:12]} {[%emt 00:14:12]} 18. Be7 {[%clk 01:19:49]} {[%emt
00:03:54]} Re8 {[%clk 00:53:32]} {[%emt 00:04:11]} 19. f6 {[%clk 01:20:01]}
{[%emt 00:00:18]} Kh8 {[%clk 00:53:57]} {[%emt 00:00:05]} 20. Qh6 {[%clk
01:19:00]} {[%emt 00:01:31]} Rg8 {[%clk 00:54:21]} {[%emt 00:00:06]} 21. Rf3
{[%clk 01:18:56]} {[%emt 00:00:34]} Nc5 {[%clk 00:28:10]} {[%emt 00:26:41]} 22.
Bf8 {[%clk 01:16:41]} {[%emt 00:02:44]} Bxf6 {[%clk 00:28:02]} {[%emt
00:00:39]} 23. Rxf6 {[%clk 01:17:01]} {[%emt 00:00:11]} Be6 {[%clk 00:27:01]}
{[%emt 00:01:30]} 24. Bxd6 {[%clk 01:17:07]} {[%emt 00:00:23]} Nd7 {[%clk
00:25:11]} {[%emt 00:02:20]} 25. Raf1 {[%clk 01:16:25]} {[%emt 00:01:12]} Rg7
{[%clk 00:25:24]} {[%emt 00:00:17]} 26. dxe6 {[%clk 01:14:38]} {[%emt
00:02:17]} Nxf6 {[%clk 00:25:42]} {[%emt 00:00:12]} 27. Be5 {[%clk 01:13:44]}
{[%emt 00:01:23]} 1-0

[Event "19th Rochefort Chess Festival - Masters"]
[Site "Rochefort, France"]
[Date "2020.02.25"]
[Round "6.5"]
[White "Suarez Uriel, Adrian"]
[Black "Jeet, Jain"]
[Result "1/2-1/2"]
[TimeControl "1h30/40 - 30' + [30'']"]
[WhiteElo "2371"]
[BlackElo "2223"]

1. e4 {[%clk 01:27:08]} {[%emt 00:03:47]} e5 {[%clk 01:30:26]} {[%emt
00:00:39]} 2. Nf3 {[%clk 01:27:33]} {[%emt 00:00:05]} Nc6 {[%clk 01:30:38]}
{[%emt 00:00:18]} 3. Bb5 {[%clk 01:27:58]} {[%emt 00:00:05]} a6 {[%clk
01:30:47]} {[%emt 00:00:21]} 4. Ba4 {[%clk 01:28:24]} {[%emt 00:00:04]} Nf6
{[%clk 01:31:10]} {[%emt 00:00:07]} 5. O-O {[%clk 01:28:49]} {[%emt 00:00:05]}
Be7 {[%clk 01:30:39]} {[%emt 00:01:01]} 6. d3 {[%clk 01:29:14]} {[%emt
00:00:05]} b5 {[%clk 01:30:49]} {[%emt 00:00:21]} 7. Bb3 {[%clk 01:29:39]}
{[%emt 00:00:05]} d6 {[%clk 01:31:16]} {[%emt 00:00:03]} 8. Bd2 {[%clk
01:30:04]} {[%emt 00:00:05]} O-O {[%clk 01:27:53]} {[%emt 00:03:52]} 9. h3
{[%clk 01:30:31]} {[%emt 00:00:03]} Be6 {[%clk 01:21:55]} {[%emt 00:06:29]} 10.
Nc3 {[%clk 01:30:55]} {[%emt 00:00:05]} Nd7 {[%clk 01:03:03]} {[%emt 00:19:22]}
11. Bd5 {[%clk 01:26:41]} {[%emt 00:04:44]} Bxd5 {[%clk 01:02:19]} {[%emt
00:01:15]} 12. Nxd5 {[%clk 01:26:16]} {[%emt 00:00:54]} Nb6 {[%clk 00:57:50]}
{[%emt 00:04:59]} 13. Qe2 {[%clk 01:20:42]} {[%emt 00:06:04]} Nxd5 {[%clk
00:44:37]} {[%emt 00:13:43]} 14. exd5 {[%clk 01:17:09]} {[%emt 00:04:03]} Nd4
{[%clk 00:44:08]} {[%emt 00:01:00]} 15. Nxd4 {[%clk 01:17:34]} {[%emt
00:00:05]} exd4 {[%clk 00:44:33]} {[%emt 00:00:05]} 16. Qg4 {[%clk 01:17:51]}
{[%emt 00:00:13]} Bf6 {[%clk 00:44:29]} {[%emt 00:00:34]} 17. a4 {[%clk
01:16:36]} {[%emt 00:01:46]} Qc8 {[%clk 00:42:55]} {[%emt 00:02:04]} 18. axb5
{[%clk 01:13:11]} {[%emt 00:03:55]} axb5 {[%clk 00:43:23]} {[%emt 00:00:01]} 19.
Qxc8 {[%clk 01:09:40]} {[%emt 00:04:01]} Rfxc8 {[%clk 00:43:35]} {[%emt
00:00:18]} 20. g4 {[%clk 01:09:55]} {[%emt 00:00:15]} h6 {[%clk 00:38:09]}
{[%emt 00:05:56]} 21. b3 {[%clk 01:05:31]} {[%emt 00:04:54]} Re8 {[%clk
00:27:31]} {[%emt 00:11:08]} 22. Ba5 {[%clk 01:00:19]} {[%emt 00:05:42]} Ra7
{[%clk 00:27:30]} {[%emt 00:00:31]} 23. Bb4 {[%clk 00:38:35]} {[%emt 00:22:15]}
Rxa1 {[%clk 00:17:49]} {[%emt 00:10:11]} 24. Rxa1 {[%clk 00:39:03]} {[%emt
00:00:02]} Re2 {[%clk 00:18:12]} {[%emt 00:00:07]} 25. Ra8+ {[%clk 00:39:30]}
{[%emt 00:00:03]} Kh7 {[%clk 00:18:38]} {[%emt 00:00:04]} 26. Rc8 {[%clk
00:39:58]} {[%emt 00:00:02]} Rxc2 {[%clk 00:16:21]} {[%emt 00:02:47]} 27. Bxd6
{[%clk 00:40:14]} {[%emt 00:00:14]} Rc3 {[%clk 00:16:40]} {[%emt 00:00:10]} 28.
Rxc7 {[%clk 00:40:39]} {[%emt 00:00:06]} Rxd3 {[%clk 00:17:02]} {[%emt
00:00:08]} 29. Bf4 {[%clk 00:39:06]} {[%emt 00:02:03]} g5 {[%clk 00:11:32]}
{[%emt 00:06:00]} 30. Rc6 {[%clk 00:37:17]} {[%emt 00:02:20]} Kg7 {[%clk
00:09:57]} {[%emt 00:02:05]} 31. Bc7 {[%clk 00:31:39]} {[%emt 00:06:08]} Rxb3
{[%clk 00:08:08]} {[%emt 00:02:19]} 32. Ba5 {[%clk 00:27:45]} {[%emt 00:04:25]}
Ra3 {[%clk 00:07:53]} {[%emt 00:00:45]} 33. Bd2 {[%clk 00:25:46]} {[%emt
00:02:27]} Ra2 {[%clk 00:06:40]} {[%emt 00:01:44]} 34. Bb4 {[%clk 00:24:58]}
{[%emt 00:01:18]} Ra4 {[%clk 00:05:55]} {[%emt 00:01:15]} 35. Bd2 {[%clk
00:25:23]} {[%emt 00:00:06]} d3 {[%clk 00:05:48]} {[%emt 00:00:36]} 36. d6
{[%clk 00:23:48]} {[%emt 00:02:05]} Rc4 {[%clk 00:02:39]} {[%emt 00:03:39]} 37.
Ra6 {[%clk 00:23:27]} {[%emt 00:00:50]} Rd4 {[%clk 00:01:34]} {[%emt 00:01:36]}
38. Rb6 {[%clk 00:23:37]} {[%emt 00:00:21]} Rd5 {[%clk 00:01:42]} {[%emt
00:00:22]} 39. Kg2 {[%clk 00:23:18]} {[%emt 00:00:49]} Be5 {[%clk 00:01:57]}
{[%emt 00:00:15]} 40. Kf3 {[%clk 00:20:47]} {[%emt 00:03:00]} Bf4 {[%clk
00:01:00]} {[%emt 00:01:27]} 41. Ke4 {[%clk 00:17:52]} {[%emt 00:03:25]} Rxd6
{[%clk 00:22:07]} {[%emt 00:09:22]} 42. Bc3+ {[%clk 00:48:15]} {[%emt
00:00:08]} f6 {[%clk 00:19:27]} {[%emt 00:03:10]} 43. Rxd6 {[%clk 00:48:42]}
{[%emt 00:00:03]} Bxd6 {[%clk 00:19:54]} {[%emt 00:00:03]} 44. Kxd3 {[%clk
00:49:10]} {[%emt 00:00:02]} Kf7 {[%clk 00:13:21]} {[%emt 00:07:03]} 45. Bd2
{[%clk 00:49:25]} {[%emt 00:00:15]} Bc5 {[%clk 00:13:24]} {[%emt 00:00:27]} 46.
f4 {[%clk 00:49:26]} {[%emt 00:00:29]} Ke6 {[%clk 00:12:01]} {[%emt 00:01:53]}
47. f5+ {[%clk 00:49:11]} {[%emt 00:00:44]} Kd5 {[%clk 00:12:02]} {[%emt
00:00:28]} 48. Bc3 {[%clk 00:49:38]} {[%emt 00:00:03]} Be7 {[%clk 00:12:26]}
{[%emt 00:00:06]} 49. Bb2 {[%clk 00:50:05]} {[%emt 00:00:03]} Kc6 {[%clk
00:06:58]} {[%emt 00:05:59]} 50. Bd4 {[%clk 00:49:31]} {[%emt 00:01:04]} Kb7
{[%clk 00:07:22]} {[%emt 00:00:06]} 51. Ke4 {[%clk 00:49:43]} {[%emt 00:00:18]}
Kc6 {[%clk 00:06:48]} {[%emt 00:01:04]} 52. Kd3 {[%clk 00:50:06]} {[%emt
00:00:07]} Bd8 {[%clk 00:05:27]} {[%emt 00:01:51]} 53. Bb2 {[%clk 00:50:29]}
{[%emt 00:00:07]} Kc5 {[%clk 00:05:39]} {[%emt 00:00:18]} 54. Ba3+ {[%clk
00:50:02]} {[%emt 00:00:57]} b4 {[%clk 00:06:09]} 55. Bb2 {[%clk 00:50:31]}
{[%emt 00:00:01]} Kb5 {[%clk 00:05:27]} {[%emt 00:01:11]} 56. Kd4 {[%clk
00:45:44]} {[%emt 00:05:17]} Kc6 {[%clk 00:01:20]} {[%emt 00:04:37]} 57. Kc4
{[%clk 00:44:02]} {[%emt 00:02:13]} Be7 {[%clk 00:01:32]} {[%emt 00:00:18]} 58.
Bd4 {[%clk 00:42:21]} {[%emt 00:02:11]} Kc7 {[%clk 00:01:48]} {[%emt 00:00:14]}
59. Be3 {[%clk 00:41:31]} {[%emt 00:01:20]} Kc6 {[%clk 00:01:46]} {[%emt
00:00:33]} 60. Bd4 {[%clk 00:38:57]} {[%emt 00:03:03]} Kc7 {[%clk 00:02:09]}
{[%emt 00:00:07]} 61. Kd5 {[%clk 00:38:44]} {[%emt 00:00:43]} Kd7 {[%clk
00:02:37]} {[%emt 00:00:01]} 62. Ba1 {[%clk 00:37:37]} {[%emt 00:01:37]} Bd8
{[%clk 00:02:44]} {[%emt 00:00:23]} 63. Bb2 {[%clk 00:38:02]} {[%emt 00:00:05]}
Be7 {[%clk 00:02:43]} {[%emt 00:00:31]} 64. Bd4 {[%clk 00:38:27]} {[%emt
00:00:05]} b3 {[%clk 00:01:47]} {[%emt 00:01:26]} 65. Kc4 {[%clk 00:38:54]}
{[%emt 00:00:04]} Kc6 {[%clk 00:02:10]} {[%emt 00:00:07]} 66. Kxb3 {[%clk
00:38:31]} {[%emt 00:00:53]} Kd5 {[%clk 00:02:36]} {[%emt 00:00:04]} 67. Bc3
{[%clk 00:38:58]} {[%emt 00:00:03]} Ke4 {[%clk 00:01:45]} {[%emt 00:01:22]} 68.
Kc4 {[%clk 00:39:21]} {[%emt 00:00:07]} Kf3 {[%clk 00:02:11]} {[%emt 00:00:04]}
69. Kd5 {[%clk 00:39:39]} {[%emt 00:00:12]} Kg3 {[%clk 00:02:39]} {[%emt
00:00:02]} 70. Ke6 {[%clk 00:38:27]} {[%emt 00:01:43]} Bc5 {[%clk 00:03:07]}
{[%emt 00:00:02]} 71. Bxf6 {[%clk 00:35:45]} {[%emt 00:03:10]} Kxh3 {[%clk
00:03:34]} {[%emt 00:00:03]} 72. Be5 {[%clk 00:35:51]} {[%emt 00:00:25]} Kxg4
{[%clk 00:03:12]} {[%emt 00:00:52]} 73. f6 {[%clk 00:36:19]} {[%emt 00:00:01]}
h5 {[%clk 00:02:33]} {[%emt 00:01:09]} 74. f7 {[%clk 00:34:50]} {[%emt
00:02:00]} Bf8 {[%clk 00:02:56]} {[%emt 00:00:07]} 75. Bd6 {[%clk 00:35:14]}
{[%emt 00:00:06]} Bg7 {[%clk 00:03:14]} {[%emt 00:00:12]} 76. Be5 {[%clk
00:35:31]} {[%emt 00:00:14]} Bf8 {[%clk 00:03:37]} {[%emt 00:00:06]} 1/2-1/2

[Event "19th Rochefort Chess Festival - Masters"]
[Site "Rochefort, France"]
[Date "2020.02.25"]
[Round "6.3"]
[White "Maiorov, Nikita"]
[Black "Jolly, Jean-Francois"]
[Result "1-0"]
[TimeControl "1h30/40 - 30' + [30'']"]
[WhiteElo "2506"]
[BlackElo "2386"]

1. d4 {[%clk 01:21:32]} {[%emt 00:09:27]} Nf6 {[%clk 01:30:18]} {[%emt
00:00:42]} 2. c4 {[%clk 01:21:59]} {[%emt 00:00:04]} g6 {[%clk 01:29:13]}
{[%emt 00:01:35]} 3. g3 {[%clk 01:22:02]} {[%emt 00:00:27]} c6 {[%clk
01:26:57]} {[%emt 00:02:45]} 4. Bg2 {[%clk 01:22:11]} {[%emt 00:00:21]} d5
{[%clk 01:27:21]} {[%emt 00:00:06]} 5. Nf3 {[%clk 01:22:11]} {[%emt 00:00:30]}
Bg7 {[%clk 01:26:08]} {[%emt 00:01:43]} 6. b3 {[%clk 01:21:30]} {[%emt
00:01:12]} O-O {[%clk 01:24:41]} {[%emt 00:01:56]} 7. O-O {[%clk 01:21:57]}
{[%emt 00:00:04]} dxc4 {[%clk 01:24:32]} {[%emt 00:00:39]} 8. bxc4 {[%clk
01:22:24]} {[%emt 00:00:03]} c5 {[%clk 01:24:55]} {[%emt 00:00:06]} 9. Bb2
{[%clk 01:22:51]} {[%emt 00:00:02]} Qb6 {[%clk 01:21:55]} {[%emt 00:03:31]} 10.
Qb3 {[%clk 01:21:51]} {[%emt 00:01:31]} Ne4 {[%clk 01:15:11]} {[%emt 00:07:13]}
11. e3 {[%clk 01:22:12]} {[%emt 00:00:08]} Nc6 {[%clk 01:12:53]} {[%emt
00:02:48]} 12. Ne5 {[%clk 01:21:44]} {[%emt 00:00:58]} Nd6 {[%clk 00:57:28]}
{[%emt 00:15:55]} 13. Nxc6 {[%clk 01:21:46]} {[%emt 00:00:28]} bxc6 {[%clk
00:57:54]} {[%emt 00:00:05]} 14. dxc5 {[%clk 01:21:40]} {[%emt 00:00:37]} Qxc5
{[%clk 00:57:22]} {[%emt 00:01:01]} 15. Bxg7 {[%clk 01:22:04]} {[%emt
00:00:06]} Kxg7 {[%clk 00:57:46]} {[%emt 00:00:07]} 16. Nd2 {[%clk 01:22:18]}
{[%emt 00:00:15]} f6 {[%clk 00:48:50]} {[%emt 00:09:26]} 17. Rfc1 {[%clk
01:14:24]} {[%emt 00:08:25]} a5 {[%clk 00:27:27]} {[%emt 00:21:53]} 18. Qa4
{[%clk 01:10:31]} {[%emt 00:04:23]} Ra6 {[%clk 00:27:06]} {[%emt 00:00:52]} 19.
Nb3 {[%clk 01:01:11]} {[%emt 00:09:50]} Qe5 {[%clk 00:27:16]} {[%emt 00:00:20]}
20. Qa3 {[%clk 00:51:15]} {[%emt 00:10:25]} a4 {[%clk 00:17:51]} {[%emt
00:09:56]} 21. Nd4 {[%clk 00:31:53]} {[%emt 00:19:52]} Bd7 {[%clk 00:18:00]}
{[%emt 00:00:21]} 22. c5 {[%clk 00:32:07]} {[%emt 00:00:15]} Nf7 {[%clk
00:17:01]} {[%emt 00:01:28]} 23. Rab1 {[%clk 00:31:01]} {[%emt 00:01:36]} Rb8
{[%clk 00:15:09]} {[%emt 00:02:23]} 24. Qd3 {[%clk 00:29:40]} {[%emt 00:01:51]}
Rxb1 {[%clk 00:12:35]} {[%emt 00:03:04]} 25. Rxb1 {[%clk 00:30:03]} {[%emt
00:00:06]} Bc8 {[%clk 00:08:12]} {[%emt 00:04:53]} 26. f4 {[%clk 00:26:11]}
{[%emt 00:04:22]} Qc7 {[%clk 00:04:11]} {[%emt 00:04:31]} 27. Qxa6 {[%clk
00:24:51]} {[%emt 00:01:51]} 1-0

[Event "19th Rochefort Chess Festival - Masters"]
[Site "Rochefort, France"]
[Date "2020.02.25"]
[Round "6.1"]
[White "Burmakin, Vladimir"]
[Black "Van Den Doel, Erik"]
[Result "1/2-1/2"]
[TimeControl "1h30/40 - 30' + [30'']"]
[WhiteElo "2514"]
[BlackElo "2583"]

1. Nf3 {[%clk 01:30:57]} {[%emt 00:00:02]} d5 {[%clk 01:28:59]} {[%emt
00:02:03]} 2. c4 {[%clk 01:31:21]} {[%emt 00:00:06]} d4 {[%clk 01:29:26]}
{[%emt 00:00:03]} 3. g3 {[%clk 01:31:42]} {[%emt 00:00:08]} Nc6 {[%clk
01:29:52]} {[%emt 00:00:04]} 4. Bg2 {[%clk 01:31:30]} {[%emt 00:00:42]} e5
{[%clk 01:30:18]} {[%emt 00:00:04]} 5. O-O {[%clk 01:31:33]} {[%emt 00:00:27]}
e4 {[%clk 01:30:40]} {[%emt 00:00:09]} 6. Ne1 {[%clk 01:31:48]} {[%emt
00:00:14]} h5 {[%clk 01:30:42]} {[%emt 00:00:28]} 7. d3 {[%clk 01:31:07]}
{[%emt 00:01:11]} e3 {[%clk 01:30:41]} {[%emt 00:00:32]} 8. fxe3 {[%clk
01:30:40]} {[%emt 00:00:56]} h4 {[%clk 01:30:50]} {[%emt 00:00:21]} 9. exd4
{[%clk 01:21:13]} {[%emt 00:09:57]} hxg3 {[%clk 01:25:03]} {[%emt 00:06:17]} 10.
hxg3 {[%clk 01:15:48]} {[%emt 00:05:55]} Nxd4 {[%clk 01:20:34]} {[%emt
00:05:00]} 11. Nc3 {[%clk 00:59:55]} {[%emt 00:16:23]} Bg4 {[%clk 00:55:18]}
{[%emt 00:25:45]} 12. Qd2 {[%clk 00:59:02]} {[%emt 00:01:24]} Bb4 {[%clk
00:33:53]} {[%emt 00:21:56]} 13. Rf2 {[%clk 00:44:03]} {[%emt 00:15:28]} c6
{[%clk 00:20:05]} {[%emt 00:14:18]} 14. Nc2 {[%clk 00:31:50]} {[%emt 00:12:42]}
Nxc2 {[%clk 00:16:56]} {[%emt 00:03:40]} 15. Qxc2 {[%clk 00:32:19]} {[%emt
00:00:01]} Bc5 {[%clk 00:17:14]} {[%emt 00:00:12]} 16. e3 {[%clk 00:32:26]}
{[%emt 00:00:22]} Nf6 {[%clk 00:17:19]} {[%emt 00:00:25]} 17. d4 {[%clk
00:32:05]} {[%emt 00:00:51]} Be7 {[%clk 00:16:31]} {[%emt 00:01:18]} 18. d5
{[%clk 00:26:00]} {[%emt 00:06:35]} Bd7 {[%emt 00:09:52]} 1/2-1/2